bitfinex/quotes_SOLUSD_20251204
["timestamp","ask_amount","ask_price","bid_price","bid_amount"]
[1764830538732,8.36,144.21,144.18,4.038665]
[1764830539226,0.72,144.2,144.17,11.69474824]
[1764830540617,7.64,144.21,144.18,11.69442121]
[1764830540826,7.64,144.22,144.19,10.9738112]
[1764830541019,0.72,144.23,144.21,4.038665]
[1764830541534,0.72,144.23,144.2,4.038665]
[1764830542012,0.72,144.23,144.2,10.97330875]
[1764830543215,15.29256924,144.25,144.21,4.758665]
[1764830543421,0.72,144.24,144.2,7.65464375]
[1764830543724,0.72,144.24,144.2,11.69330875]
[1764830543926,0.72,144.24,144.2,10.97330875]
[1764830547025,0.72,144.24,144.2,6.93464375]
[1764830547428,0.72,144.24,144.2,10.97330875]
[1764830548437,0.72,144.24,144.21,4.758665]
[1764830548640,0.72,144.24,144.21,4.038665]
[1764830549170,0.72,144.24,144.2,11.69330875]
[1764830549516,0.72,144.24,144.21,4.038665]
[1764830550325,0.72,144.24,144.21,10.97263301]
[1764830550930,7.64,144.25,144.23,4.038665]
[1764830551243,7.64,144.25,144.22,0.72]
[1764830551244,7.64,144.25,144.24,4.038665]
[1764830551538,8.36,144.25,144.24,4.038665]
[1764830551740,7.64,144.25,144.24,4.038665]
[1764830552324,0.72,144.27,144.25,6.93240901]
[1764830552546,0.72,144.27,144.25,10.97107401]
[1764830554951,8.36,144.28,144.25,10.97107401]
[1764830555245,0.72,144.28,144.26,4.038665]
[1764830555435,8.36,144.28,144.26,4.038665]
[1764830555640,0.72,144.27,144.26,4.038665]
[1764830555835,0.72,144.27,144.25,10.97107401]
[1764830556146,8.36,144.28,144.26,4.038665]
[1764830556351,0.72,144.31,144.27,4.038665]
[1764830556667,0.72,144.31,144.28,4.038665]
[1764830557572,0.72,144.31,144.28,10.96953901]
[1764830557857,8.36,144.32,144.29,4.038665]
[1764830558034,0.72,144.31,144.29,4.038665]
[1764830558355,0.72,144.31,144.28,6.93087401]
[1764830558531,0.72,144.31,144.27,9.51381027]
[1764830559445,3.30244902,144.31,144.27,2.58244902]
[1764830559640,10.23229585,144.31,144.27,2.58244902]
[1764830559944,0.72,144.3,144.26,6.93175663]
[1764830560142,0.72,144.3,144.27,2.58244902]
[1764830560854,0.72,144.3,144.26,6.93175663]
[1764830561044,0.72,144.3,144.27,2.58244902]
[1764830562941,10.23247655,144.3,144.26,6.93175663]
[1764830563240,10.23247655,144.3,144.24,34.48326608]
[1764830563241,7.64,144.29,144.24,34.48326608]
[1764830563463,7.64,144.29,144.26,2.58244902]
[1764830563464,8.34,144.29,144.26,2.58244902]
[1764830563756,0.7,144.28,144.26,2.58244902]
[1764830564856,0.7,144.28,144.26,9.51437661]
[1764830565757,0.7,144.28,144.25,9.5146954]
[1764830565956,7.63107343,144.28,144.25,2.58244902]
[1764830566158,0.7,144.28,144.25,2.58244902]
[1764830566356,0.7,144.27,144.25,9.51485013]
[1764830567657,0.7,144.28,144.26,2.58244902]
[1764830567954,7.62918196,144.32,144.27,9.51389699]
[1764830568154,14.56918196,144.32,144.29,2.58244902]
[1764830568357,0.7,144.31,144.28,2.58244902]
[1764830568852,7.72859827,144.33,144.3,2.58244902]
[1764830569042,8.34,144.32,144.3,2.58244902]
[1764830569557,0.7,144.31,144.3,2.58244902]
[1764830571558,0.7,144.31,144.29,9.5128924]
[1764830572735,0.7,144.31,144.29,6.93044338]
[1764830572940,0.7,144.31,144.3,2.58244902]
[1764830578262,7.64,144.32,144.3,2.58244902]
[1764830578468,8.34,144.32,144.3,2.58244902]
[1764830578763,0.7,144.31,144.29,2.58244902]
[1764830581957,7.62967773,144.31,144.27,7.65140022]
[1764830582160,7.62967773,144.31,144.29,2.58244902]
[1764830582463,0.7,144.3,144.29,2.58244902]
[1764830583166,0.7,144.3,144.27,7.65140022]
[1764830583346,0.7,144.3,144.28,2.58244902]
[1764830583541,7.63001762,144.3,144.26,6.93179057]
[1764830583742,7.64,144.29,144.27,2.58244902]
[1764830583949,8.34,144.29,144.27,2.58244902]
[1764830584144,0.7,144.28,144.27,2.58244902]
[1764830584746,0.7,144.28,144.26,2.58244902]
[1764830584952,7.63105982,144.28,144.25,2.58244902]
[1764830585165,0.7,144.27,144.25,2.58244902]
[1764830585872,0.7,144.27,144.26,2.58244902]
[1764830586169,0.7,144.27,144.25,9.51484351]
[1764830588060,0.7,144.27,144.24,2.58244902]
[1764830588368,7.63155115,144.27,144.23,2.58244902]
[1764830588670,7.64,144.26,144.23,2.58244902]
[1764830588877,8.34,144.26,144.23,2.58244902]
[1764830589058,0.7,144.25,144.23,2.58244902]
[1764830589574,0.7,144.25,144.22,6.9337397]
[1764830589754,0.7,144.25,144.23,2.58244902]
[1764830589956,7.63247565,144.25,144.23,2.58244902]
[1764830590358,0.7,144.25,144.23,2.58244902]
[1764830590577,14.5721054,144.26,144.23,2.58244902]
[1764830590783,0.7,144.25,144.23,2.58244902]
[1764830594375,7.63244207,144.25,144.23,2.58244902]
[1764830594577,7.63244207,144.25,144.19,18.00769189]
[1764830594765,0.68,144.24,144.21,2.58244902]
[1764830596079,0.68,144.24,144.2,7.60452107]
[1764830596282,0.68,144.24,144.21,2.58244902]
[1764830596980,7.64,144.23,144.2,2.58244902]
[1764830597189,7.64,144.23,144.19,9.517674]
[1764830597363,0.68,144.22,144.2,2.58244902]
[1764830597561,0.68,144.22,144.19,6.93522498]
[1764830597771,0.68,144.22,144.2,2.58244902]
[1764830598091,7.61385575,144.22,144.19,2.58244902]
[1764830598268,7.61385575,144.22,144.18,2.58244902]
[1764830598582,0.68,144.21,144.18,2.58244902]
[1764830599661,6.93385575,144.22,144.19,2.58244902]
[1764830599867,7.61385575,144.22,144.18,7.60574339]
[1764830600070,7.61385575,144.22,144.2,2.58244902]
[1764830600884,7.64,144.23,144.21,2.58244902]
[1764830601070,8.32,144.23,144.21,2.58244902]
[1764830601881,0.68,144.22,144.2,2.58244902]
[1764830602780,0.68,144.22,144.2,9.51716919]
[1764830602987,7.64,144.23,144.21,3.25244902]
[1764830603167,7.64,144.23,144.21,0.67]
[1764830603487,7.64,144.23,144.22,2.58244902]
[1764830606585,7.64,144.23,144.22,9.51630008]
[1764830608271,7.64,144.23,144.22,2.58244902]
[1764830608582,7.64,144.23,144.15,17.3370319]
[1764830608583,32.58711587,144.23,144.15,17.3370319]
[1764830608790,16.308864,144.2,144.16,6.93640049]
[1764830609001,0.68,144.22,144.18,2.58244902]
[1764830609209,26.14115892,144.25,144.17,0.67]
[1764830609210,6.93301811,144.24,144.17,0.67]
[1764830609495,8.32,144.23,144.21,2.58244902]
[1764830609868,8.32,144.23,144.2,2.58244902]
[1764830609869,0.68,144.22,144.2,2.58244902]
[1764830611473,0.68,144.22,144.21,2.58244902]
[1764830611679,8.32,144.23,144.21,2.58244902]
[1764830611877,7.64,144.23,144.22,2.58244902]
[1764830612075,0.68,144.22,144.2,2.58244902]
[1764830612679,7.61418675,144.22,144.19,2.58244902]
[1764830612883,7.61418675,144.22,144.18,2.58244902]
[1764830613085,0.68,144.21,144.18,2.58244902]
[1764830613494,0.68,144.21,144.19,2.58244902]
[1764830614192,0.68,144.21,144.17,7.60616544]
[1764830614383,0.68,144.21,144.19,2.58244902]
[1764830617101,32.75880892,144.2,144.12,0.67]
[1764830617402,32.75880892,144.2,144.13,2.58244902]
[1764830617590,0.68,144.19,144.15,2.58244902]
[1764830617796,0.68,144.19,144.16,2.58244902]
[1764830618101,0.68,144.19,144.13,0.67]
[1764830618397,8.80994492,144.18,144.15,2.58244902]
[1764830618701,7.64,144.17,144.15,2.58244902]
[1764830618915,18.89131302,144.2,144.16,3.25244902]
[1764830618916,23.92368631,144.2,144.16,3.25244902]
[1764830619222,7.64,144.18,144.15,7.60719901]
[1764830619774,8.32,144.18,144.15,7.60719901]
[1764830620175,8.32,144.18,144.15,0.67]
[1764830620396,8.32,144.18,144.16,4.04207607]
[1764830620625,9.52994492,144.17,144.1,0.2]
[1764830620798,4.04207607,144.14,144.1,0.2]
[1764830621002,7.64,144.13,144.1,4.24207607]
[1764830621226,7.64,144.13,144.11,4.04207607]
[1764830621597,7.64,144.13,144.1,7.13954519]
[1764830621598,7.64,144.13,144.12,4.72207607]
[1764830621793,7.64,144.14,144.12,4.72207607]
[1764830621999,7.64,144.14,144.13,4.72207607]
[1764830623319,7.64,144.14,144.12,6.93860128]
[1764830623520,7.64,144.14,144.13,4.04207607]
[1764830624208,7.64,144.14,144.12,0.72]
[1764830624399,7.64,144.14,144.13,4.04207607]
[1764830625213,7.64,144.14,144.12,7.65859484]
[1764830625214,0.72,144.16,144.12,7.65859484]
[1764830625418,8.36,144.16,144.14,4.04207607]
[1764830626318,0.72,144.16,144.14,4.04207607]
[1764830626511,46.49928539,144.19,144.14,4.04207607]
[1764830626512,40.58296998,144.19,144.14,4.04207607]
[1764830626696,17.16994492,144.18,144.15,4.04207607]
[1764830626898,8.36,144.18,144.16,4.04207607]
[1764830627614,0.72,144.17,144.15,4.04207607]
[1764830627926,7.64,144.18,144.15,4.04207607]
[1764830628108,7.64,144.18,144.15,4.76207607]
[1764830628314,8.36,144.18,144.15,4.04207607]
[1764830628614,0.72,144.17,144.12,7.65825487]
[1764830628801,0.72,144.17,144.13,4.04207607]
[1764830628994,0.72,144.17,144.13,4.76207607]
[1764830629416,0.72,144.17,144.12,6.93825487]
[1764830629598,0.72,144.17,144.13,4.04207607]
[1764830629914,4.76207607,144.17,144.13,4.04207607]
[1764830630116,0.72,144.17,144.13,4.04207607]
[1764830630294,0.72,144.16,144.13,4.04207607]
[1764830631605,0.72,144.16,144.13,6.93817676]
[1764830631813,0.72,144.16,144.13,10.98025283]
[1764830632021,0.72,144.16,144.13,6.93817676]
[1764830632520,0.72,144.16,144.13,10.98025283]
[1764830632823,0.72,144.16,144.13,4.04207607]
[1764830633400,7.65680599,144.16,144.13,4.04207607]
[1764830634426,6.93680599,144.16,144.12,10.98061458]
[1764830634630,0.72,144.15,144.12,10.98061458]
[1764830635307,0.72,144.15,144.12,11.70061458]
[1764830635634,0.72,144.15,144.12,10.98061458]
[1764830636233,0.72,144.15,144.12,4.04207607]
[1764830636234,7.65724445,144.15,144.12,4.04207607]
[1764830636543,15.29724445,144.15,144.11,6.93905074]
[1764830636729,15.29724445,144.15,144.12,4.04207607]
[1764830637506,0.72,144.14,144.12,4.04207607]
[1764830638238,15.29724445,144.15,144.12,4.04207607]
[1764830639612,15.29724445,144.15,144.13,4.04207607]
[1764830640135,8.36,144.15,144.13,4.04207607]
[1764830640709,8.36,144.15,144.11,7.65905074]
[1764830640710,0.72,144.14,144.1,7.13923909]
[1764830640910,0.72,144.14,144.11,6.93908302]
[1764830641125,0.72,144.14,144.11,10.98115909]
[1764830641326,0.72,144.14,144.13,4.04207607]
[1764830641534,0.72,144.14,144.12,4.04207607]
[1764830641921,0.72,144.14,144.1,11.18152846]
[1764830643241,0.72,144.14,144.1,7.13945239]
[1764830643440,0.72,144.14,144.1,11.18152846]
[1764830643741,0.72,144.14,144.11,4.04207607]
[1764830644046,7.65779399,144.14,144.1,11.18152846]
[1764830644252,0.72,144.13,144.1,11.18152846]
[1764830644449,0.72,144.13,144.1,0.2]
[1764830644618,7.64,144.12,144.1,0.2]
[1764830645135,0.72,144.11,144.1,0.2]
[1764830647026,7.64,144.12,144.1,0.2]
[1764830647226,8.36,144.12,144.1,0.2]
[1764830647729,0.72,144.11,144.1,0.2]
[1764830648041,15.29869478,144.12,144.1,0.2]
[1764830648240,14.57869478,144.12,144.1,0.2]
[1764830648443,0.72,144.11,144.1,0.2]
[1764830649144,15.29869478,144.12,144.1,4.24207607]
[1764830649332,0.72,144.11,144.1,0.2]
[1764830650339,15.74831952,144.13,144.1,0.2]
[1764830650600,7.64,144.12,144.1,11.18160743]
[1764830650737,7.64,144.12,144.1,7.85953136]
[1764830651240,8.36,144.12,144.1,0.2]
[1764830651863,8.36,144.12,144.1,4.24207607]
[1764830652145,8.36,144.13,144.1,11.181671]
[1764830652352,8.36,144.13,144.1,7.13959493]
[1764830652555,8.36,144.13,144.1,11.181671]
[1764830652758,7.64,144.13,144.11,10.98119971]
[1764830652957,16.308864,144.16,144.11,10.98119971]
[1764830652958,7.64,144.14,144.12,4.04207607]
[1764830653264,7.64,144.15,144.12,7.61852362]
[1764830653468,7.64,144.15,144.13,4.04207607]
[1764830653653,8.31,144.15,144.13,4.04207607]
[1764830656259,8.31,144.15,144.12,6.93852362]
[1764830656568,8.31,144.15,144.12,10.98059969]
[1764830658473,0.67,144.14,144.12,10.98059969]
[1764830658644,0.67,144.14,144.11,7.61895415]
[1764830658849,0.67,144.14,144.12,4.04207607]
[1764830659366,0.67,144.14,144.11,6.93895415]
[1764830659581,0.67,144.14,144.12,4.04207607]
[1764830660049,15.24722654,144.15,144.12,4.04207607]
[1764830660248,7.64,144.15,144.13,4.04207607]
[1764830660447,8.31,144.18,144.14,4.04207607]
[1764830660654,8.31,144.18,144.15,4.04207607]
[1764830660962,0.67,144.17,144.15,4.04207607]
[1764830661648,7.64,144.18,144.15,11.65928006]
[1764830661968,8.31,144.18,144.15,11.65928006]
[1764830662477,8.31,144.18,144.16,4.04207607]
[1764830663053,8.31,144.18,144.15,11.65928006]
[1764830664367,8.31,144.18,144.16,4.04207607]
[1764830664668,8.31,144.18,144.15,6.93720399]
[1764830664871,0.67,144.17,144.15,10.97928006]
[1764830665046,0.67,144.17,144.15,6.93720399]
[1764830666161,0.67,144.17,144.15,4.04207607]
[1764830667676,0.67,144.17,144.15,10.97922696]
[1764830667868,0.67,144.19,144.16,4.04207607]
[1764830668053,7.64,144.18,144.17,4.04207607]
[1764830668872,7.64,144.18,144.15,24.96019632]
[1764830669076,7.64,144.18,144.17,4.04207607]
[1764830670172,8.31,144.18,144.16,10.97867891]
[1764830673076,8.31,144.18,144.15,24.2802636]
[1764830673283,8.31,144.18,144.16,4.04207607]
[1764830675084,8.31,144.18,144.16,10.97875054]
[1764830676362,0.67,144.17,144.15,4.04207607]
[1764830676571,0.67,144.17,144.14,6.93737627]
[1764830676957,16.308864,144.15,144.1,0.2]
[1764830677171,7.64,144.14,144.1,0.2]
[1764830677381,23.948864,144.13,144.1,0.88]
[1764830677583,16.308864,144.15,144.12,4.04207607]
[1764830677777,7.64,144.15,144.11,0.68]
[1764830678087,7.64,144.15,144.14,4.04207607]
[1764830678463,7.64,144.15,144.12,6.93847374]
[1764830678687,7.64,144.15,144.14,4.04207607]
[1764830678887,7.64,144.15,144.13,4.04207607]
[1764830679088,0.67,144.14,144.13,4.04207607]
[1764830679386,0.67,144.14,144.12,10.98054981]
[1764830679984,0.67,144.14,144.11,6.9391437]
[1764830680169,0.67,144.14,144.12,4.04207607]
[1764830682489,0.67,144.14,144.12,2.58838195]
[1764830682992,0.67,144.14,144.13,2.58838195]
[1764830683589,0.67,144.14,144.11,6.9391437]
[1764830683776,0.67,144.14,144.12,2.58838195]
[1764830684176,0.67,144.14,144.11,6.9391437]
[1764830684577,0.67,144.14,144.12,2.58838195]
[1764830684783,0.69,144.13,144.11,6.93906037]
[1764830685100,0.69,144.13,144.12,2.58838195]
[1764830685274,0.69,144.14,144.12,2.58838195]
[1764830685466,0.69,144.14,144.13,2.58838195]
[1764830687597,0.69,144.14,144.12,2.58838195]
[1764830688197,0.69,144.14,144.13,2.58838195]
[1764830688991,0.69,144.14,144.12,2.58838195]
[1764830691694,0.69,144.14,144.13,2.58838195]
[1764830694599,7.64,144.15,144.13,2.58838195]
[1764830694799,0.69,144.14,144.13,2.58838195]
[1764830700122,0.69,144.14,144.11,6.9389611]
[1764830700412,0.69,144.14,144.13,2.58838195]
[1764830704397,0.69,144.16,144.13,2.58838195]
[1764830704599,16.998864,144.17,144.15,2.58838195]
[1764830704799,16.998864,144.17,144.16,2.58838195]
[1764830705019,23.2451198,144.17,144.16,2.58838195]
[1764830705313,8.80994492,144.16,144.14,2.58838195]
[1764830705515,7.64,144.15,144.14,2.58838195]
[1764830705691,8.33,144.15,144.13,2.58838195]
[1764830705893,0.69,144.14,144.13,2.58838195]
[1764830714839,7.62776899,144.14,144.11,2.58838195]
[1764830715126,7.62776899,144.14,144.12,2.58838195]
[1764830715127,7.64,144.13,144.12,2.58838195]
[1764830715706,7.64,144.13,144.12,9.52704417]
[1764830716525,7.64,144.13,144.12,2.58838195]
[1764830716526,8.32,144.13,144.12,2.58838195]
[1764830717825,8.32,144.13,144.11,2.58838195]
[1764830718012,0.68,144.12,144.11,2.58838195]
[1764830718413,0.68,144.12,144.1,2.78838195]
[1764830718721,0.68,144.12,144.1,0.2]
[1764830719425,16.308864,144.11,144.1,0.2]
[1764830719914,23.9280077,144.11,144.1,0.2]
[1764830721237,32.73795262,144.11,144.1,0.2]
[1764830721612,39.67889048,144.11,144.1,0.2]
[1764830722132,32.73795262,144.11,144.1,0.2]
[1764830722625,8.32,144.11,144.1,2.78838195]
[1764830726515,15.2591437,144.11,144.1,0.2]
[1764830726906,8.32,144.11,144.1,2.78838195]
[1764830727939,8.32,144.11,144.1,0.2]
[1764830728238,8.32,144.11,144.1,2.78838195]
[1764830728416,8.32,144.11,144.1,0.2]
[1764830733535,0.68,144.15,144.1,10.39800721]
[1764830733734,7.64,144.14,144.13,2.58838195]
[1764830734239,7.64,144.16,144.13,13.61190975]
[1764830734543,23.948864,144.16,144.15,2.58838195]
[1764830734843,16.308864,144.17,144.15,2.58838195]
[1764830735039,8.32,144.18,144.16,2.58838195]
[1764830735745,0.68,144.17,144.16,2.58838195]
[1764830737019,0.68,144.17,144.14,6.9375591]
[1764830737223,0.68,144.17,144.15,2.58838195]
[1764830740532,7.61637571,144.17,144.13,2.58838195]
[1764830740718,7.61637571,144.17,144.13,9.52651951]
[1764830740921,0.65,144.16,144.13,9.52651951]
[1764830741121,7.64,144.15,144.13,9.52651951]
[1764830741535,8.29,144.15,144.13,9.52651951]
[1764830742448,8.29,144.15,144.14,4.04363473]
[1764830746723,8.36,144.15,144.14,4.04363473]
[1764830748134,8.36,144.15,144.13,6.9380699]
[1764830748338,8.36,144.15,144.14,4.04363473]
[1764830749755,8.36,144.15,144.13,4.04363473]
[1764830749961,0.72,144.14,144.12,4.04363473]
[1764830755141,7.65772488,144.14,144.12,4.04363473]
[1764830755536,6.93772488,144.14,144.12,4.04363473]
[1764830755737,0.72,144.13,144.12,4.04363473]
[1764830755939,0.72,144.13,144.1,0.2]
[1764830756257,0.72,144.13,144.1,4.24363473]
[1764830756461,0.72,144.13,144.11,4.04363473]
[1764830757034,7.64,144.12,144.1,0.2]
[1764830757243,7.64,144.12,144.1,4.24363473]
[1764830757566,0.72,144.11,144.1,0.2]
[1764830761057,7.6591437,144.11,144.1,0.2]
[1764830766446,7.64,144.12,144.1,4.24363473]
[1764830766646,8.36,144.12,144.1,4.24363473]
[1764830768179,15.29871394,144.12,144.1,4.24363473]
[1764830769493,15.29871394,144.12,144.1,0.2]
[1764830769699,0.72,144.11,144.1,0.2]
[1764830771184,15.29871394,144.12,144.1,0.2]
[1764830771497,15.29871394,144.12,144.09,3.24363473]
[1764830771803,15.29871394,144.12,144.1,4.04363473]
[1764830772801,15.29871394,144.12,144.08,7.81027786]
[1764830773004,15.29871394,144.12,144.09,4.04363473]
[1764830773606,0.72,144.11,144.08,7.81027786]
[1764830773898,0.72,144.11,144.09,4.04363473]
[1764830774306,7.65920226,144.11,144.08,0.2]
[1764830774714,0.72,144.1,144.08,0.2]
[1764830774890,7.64,144.09,144.08,0.2]
[1764830775703,7.64,144.09,144.08,4.24363473]
[1764830776304,7.64,144.09,144.08,0.2]
[1764830778504,7.64,144.09,144.08,4.24363473]
[1764830780612,7.64,144.09,144.08,0.2]
[1764830780819,7.64,144.09,144.08,4.24363473]
[1764830782206,7.64,144.09,144.08,4.96363473]
[1764830782407,7.64,144.11,144.08,4.96363473]
[1764830782622,7.64,144.11,144.1,4.04363473]
[1764830783035,15.29919414,144.11,144.08,0.2]
[1764830783208,15.29919414,144.11,144.08,4.24363473]
[1764830784834,0.72,144.1,144.08,4.24363473]
[1764830785512,0.72,144.1,144.08,0.2]
[1764830785833,7.77017188,144.18,144.08,0.2]
[1764830785834,0.72,144.16,144.09,0.72]
[1764830786022,8.36,144.15,144.11,4.04363473]
[1764830786217,8.80994492,144.14,144.1,4.04363473]
[1764830786536,9.52994492,144.14,144.1,4.04363473]
[1764830786732,9.52994492,144.14,144.08,7.14048558]
[1764830786733,0.72,144.13,144.08,7.86048558]
[1764830787108,7.65856599,144.13,144.11,4.04363473]
[1764830787536,0.72,144.12,144.11,4.04363473]
[1764830788524,8.36,144.12,144.11,4.04363473]
[1764830789640,15.29871797,144.12,144.1,4.04363473]
[1764830789940,15.29871797,144.12,144.11,4.04363473]
[1764830791727,8.36,144.12,144.11,4.04363473]
[1764830792253,8.36,144.12,144.09,7.66008697]
[1764830792452,8.36,144.12,144.11,4.04363473]
[1764830795752,8.36,144.12,144.09,6.94008697]
[1764830795936,8.36,144.12,144.08,0.92]
[1764830795937,0.72,144.11,144.1,4.04363473]
[1764830796847,0.72,144.11,144.08,4.24363473]
[1764830797437,0.72,144.11,144.08,0.2]
[1764830797636,0.72,144.11,144.08,4.24363473]
[1764830798825,0.72,144.11,144.09,4.04363473]
[1764830799334,0.72,144.11,144.08,4.24363473]
[1764830799650,7.65926987,144.11,144.08,4.24363473]
[1764830800034,0.72,144.1,144.08,4.24363473]
[1764830801051,7.65972221,144.1,144.08,4.24363473]
[1764830801253,0.68,144.09,144.08,0.2]
[1764830802035,7.62010687,144.09,144.08,0.2]
[1764830802354,24.07005179,144.09,144.08,0.2]
[1764830806066,26.6606564,144.09,144.08,0.2]
[1764830806267,29.4400748,144.09,144.08,0.2]
[1764830807274,16.308864,144.06,144.05,0.2]
[1764830807575,32.75880892,144.06,144.05,0.2]
[1764830807758,33.44880892,144.06,144.05,0.2]
[1764830808073,36.22900005,144.06,144.05,0.2]
[1764830808575,38.81960466,144.06,144.05,0.2]
[1764830809074,43.17055218,144.06,144.05,0.2]
[1764830809774,45.76115679,144.06,144.05,0.2]
[1764830811075,56.12357523,144.06,144.05,0.2]
[1764830811249,45.76115679,144.06,144.05,0.2]
[1764830812079,16.308864,144.02,143.99,2.59060461]
[1764830812256,7.64,144.01,143.99,2.59060461]
[1764830813087,7.64,144.01,143.98,2.59060461]
[1764830813382,7.64,144.01,143.99,2.59060461]
[1764830813579,14.58405829,144.01,143.98,2.59060461]
[1764830813787,15.27405829,144.01,143.98,2.59060461]
[1764830814079,7.64,144.01,143.99,2.59060461]
[1764830814755,7.64,144.01,143.96,24.31207608]
[1764830814957,14.58423021,144.01,143.96,6.94637399]
[1764830815181,15.27423021,144.01,143.97,2.59060461]
[1764830815780,15.27423021,144.01,143.95,7.14671643]
[1764830815973,8.80994492,144.0,143.97,2.59060461]
[1764830816367,23.25250796,144.02,143.99,2.59060461]
[1764830816692,7.64,144.01,144.0,2.59060461]
[1764830818864,7.64,144.01,143.97,6.94572256]
[1764830819060,7.64,144.01,144.0,2.59060461]
[1764830819267,7.64,144.01,143.97,17.36396661]
[1764830819461,7.64,144.01,144.0,2.59060461]
[1764830819770,6.94286054,144.04,144.0,2.59060461]
[1764830819999,7.64,144.03,144.02,2.59060461]
[1764830820489,25.11880892,144.05,144.02,2.59060461]
[1764830820490,16.308864,144.05,144.02,2.59060461]
[1764830820682,16.308864,144.05,144.04,2.59060461]
[1764830821894,23.25089801,144.05,144.04,2.59060461]
[1764830822095,23.25089801,144.05,144.01,6.94381865]
[1764830822296,23.25089801,144.05,144.04,2.59060461]
[1764830823794,23.25089801,144.05,144.03,2.59060461]
[1764830824291,0.69,144.04,144.0,6.94444444]
[1764830824489,0.69,144.04,144.02,2.59060461]
[1764830824872,23.25089801,144.05,144.02,2.59060461]
[1764830825191,0.69,144.04,144.0,2.59060461]
[1764830825505,7.64,144.03,144.0,2.59060461]
[1764830825798,6.94396222,144.01,143.97,6.94571964]
[1764830826005,6.94396222,144.01,143.99,2.59060461]
[1764830826166,7.63396222,144.01,143.99,2.59060461]
[1764830826366,7.63396222,144.01,143.98,2.59060461]
[1764830826573,7.64,144.0,143.98,2.59060461]
[1764830827585,0.69,143.99,143.97,2.59060461]
[1764830829104,7.63516394,143.99,143.97,2.59060461]
[1764830829276,7.63516394,143.99,143.95,7.14676022]
[1764830829476,6.94516394,143.99,143.97,2.59060461]
[1764830829998,6.94516394,143.99,143.95,7.14676022]
[1764830830199,6.94516394,143.99,143.96,2.59060461]
[1764830830893,6.94516394,143.99,143.97,2.59060461]
[1764830831072,14.58461015,144.0,143.95,7.14676022]
[1764830831396,36.51935845,144.02,143.99,2.59060461]
[1764830831581,7.64,144.0,143.99,2.59060461]
[1764830831970,8.33,144.0,143.97,2.59060461]
[1764830832181,8.33,144.0,143.98,2.59060461]
[1764830832489,8.33,144.0,143.96,6.94601752]
[1764830832490,0.69,143.99,143.97,2.59060461]
[1764830833302,7.63493251,143.99,143.95,2.79060461]
[1764830833677,0.7,143.98,143.95,2.79060461]
[1764830833879,0.7,143.98,143.95,9.73743437]
[1764830835202,7.64,144.0,143.97,2.59060461]
[1764830835401,8.34,144.01,143.98,2.59060461]
[1764830835611,0.7,144.0,143.98,2.59060461]
[1764830836709,0.7,144.0,143.96,0.05]
[1764830836910,0.7,144.0,143.98,2.59060461]
[1764830837083,0.7,144.0,143.98,9.53598624]
[1764830837279,0.7,144.0,143.96,6.94593843]
[1764830837508,0.7,144.0,143.97,9.53625149]
[1764830838183,10.23511568,144.0,143.96,2.59060461]
[1764830838604,0.7,143.99,143.95,0.2]
[1764830838807,17.17621406,143.98,143.95,0.2]
[1764830839010,14.58560945,143.98,143.95,0.2]
[1764830839219,27.70941353,143.96,143.95,0.2]
[1764830839619,28.40941353,143.96,143.95,0.2]
[1764830840209,35.35578752,143.96,143.95,0.2]
[1764830840723,17.008864,143.96,143.95,0.2]
[1764830840901,24.648864,143.96,143.95,0.2]
[1764830841900,40.40518291,143.96,143.95,0.2]
[1764830844334,42.99578752,143.96,143.95,0.2]
[1764830845233,40.40518291,143.96,143.95,0.2]